[Event "IIFL Wealth 4th Mumbai Open"]
[Site "Mumbai"]
[Date "2019.01.02"]
[Round "4"]
[White "Adireddy, Arjun"]
[Black "Raghav, Srivathsav V"]
[Result "0-1"]
[ECO "B01"]
[WhiteElo "1468"]
[BlackElo "2056"]
[Annotator "NA"]
[PlyCount "62"]
[EventDate "2018.12.30"]
[EventType "swiss"]
[EventCountry "IND"]
[SourceTitle "playchess.com"]
[Source "ChessBase"]
[SourceQuality "1"]
[TimeControl "40/5400+30:1800+30"]

1. e4 {[%emt 0:00:39]} d5 {[%emt 0:02:00]} 2. exd5 {[%emt 0:00:11]} Qxd5 {[%emt 0:00:03]} 3. Nc3 {[%emt 0:00:07]} Qd6 {[%emt 0:00:06]} 4. d4 {[%emt 0:00:04]} Nf6 {[%emt 0:00:10]} 5. Nf3 {[%emt 0:00:05]} a6 {[%emt 0:00:05]} 6. h3 {[%emt 0:00:25]} Bf5 {[%emt 0:00:21]} 7. Bd3 {[%emt 0:00:22]} Bxd3 {[%emt 0:00:18]} 8. Qxd3 {[%emt 0:00:03]} Nc6 {[%emt 0:00:16]} 9. a3 {[%emt 0:00:26]} e6 {[%emt 0:00:27]} 10. Be3 {[%emt 0:00:50]} Be7 {[%emt 0:00:27]} 11. Ne2 {[%emt 0:06:28]} Qd7 {[%emt 0:07:26]} 12. Ng3 {[%emt 0:01:46]} h6 {[%emt 0:01:55]} 13. O-O-O {[%emt 0:01:02]} O-O-O {[%emt 0:02:02]} 14. Ne5 {[%emt 0:01:32]} Nxe5 {[%emt 0:02:53]} 15. dxe5 {[%emt 0:00:02]} Qc6 {[%emt 0:01:20]} 16. Qe2 {[%emt 0:02:11]} Nd5 {[%emt 0:00:40]} 17. Ne4 {[%emt 0:03:52]} f5 {[%emt 0:05:37]} 18. exf6 {[%emt 0:00:31]} gxf6 {[%emt 0:00:07]} 19. f4 {[%emt 0:05:40]} f5 {[%emt 0:02:33]} 20. Nf2 {[%emt 0:00:12]} Bf6 {[%emt 0:15:34]} 21. Nd3 {[%emt 0:01:03]} Qc4 {[%emt 0:00:50]} 22. c3 {[%emt 0:07:17]} Bxc3 {[%emt 0:05:04]} 23. bxc3 {[%emt 0:00:53]} Qxc3+ {[%emt 0:00:05]} 24. Kb1 {[%emt 0:00:19]} Qb3+ {[%emt 0:00:07]} 25. Kc1 {[%emt 0:00:54]} Qxa3+ {[%emt 0:00:29]} 26. Kc2 {[%emt 0:01:27]} Qa2+ {[%emt 0:00:42]} 27. Nb2 {[%emt 0:00:10]} Nb4+ {[%emt 0:00:07]} 28. Kc3 {[%emt 0:00:12]} Qa3+ {[%emt 0:00:07]} 29. Kc4 {[%emt 0:00:09]} b5+ {[%emt 0:00:11]} 30. Kc5 {[%emt 0:00:02]} Nd3+ {[%emt 0:00:12]} 31. Kc6 {[%emt 0:00:04]} Rd6# {[%emt 0:00:07]} 0-1

[Event "IIFL Wealth 4th Mumbai Open"]
[Site "Mumbai"]
[Date "2019.01.02"]
[Round "4"]
[White "Bhaskar, N S"]
[Black "Barde, Om"]
[Result "0-1"]
[ECO "A05"]
[WhiteElo "1463"]
[BlackElo "1801"]
[Annotator "NA"]
[PlyCount "113"]
[EventDate "2018.12.30"]
[EventType "swiss"]
[EventCountry "IND"]
[SourceTitle "playchess.com"]
[Source "ChessBase"]
[SourceQuality "1"]
[TimeControl "40/5400+30:1800+30"]

1. Nf3 {[%emt 0:00:00]} Nf6 {[%emt 0:00:00]} 2. g3 {[%emt 0:00:00]} d5 {[%emt 0:00:00]} 3. Bg2 {[%emt 0:00:00]} e6 {[%emt 0:00:15]} 4. O-O {[%emt 0:00:00]} Nbd7 {[%emt 0:00:15]} 5. d3 {[%emt 0:00:11]} Be7 {[%emt 0:00:45]} 6. Nbd2 {[%emt 0:00:06]} O-O {[%emt 0:00:30]} 7. e4 {[%emt 0:00:07]} c5 {[%emt 0:00:52]} 8. e5 {[%emt 0:01:07]} Ne8 {[%emt 0:02:45]} 9. Re1 {[%emt 0:00:13]} Rb8 {[%emt 0:01:01]} 10. c3 {[%emt 0:00:59]} b5 {[%emt 0:01:03]} 11. Nf1 {[%emt 0:00:22]} Nb6 {[%emt 0:08:24]} 12. h4 {[%emt 0:02:01]} a5 {[%emt 0:02:32]} 13. d4 {[%emt 0:00:43]} b4 {[%emt 0:04:47]} 14. N1h2 {[%emt 0:02:48]} bxc3 {[%emt 0:04:59]} 15. bxc3 {[%emt 0:00:03]} cxd4 {[%emt 0:00:04]} 16. cxd4 {[%emt 0:02:58]} Ba6 {[%emt 0:01:21]} 17. a3 {[%emt 0:06:16]} Nc4 {[%emt 0:13:37]} 18. Ng5 {[%emt 0:01:53]} h6 {[%emt 0:24:33]} 19. Nh3 {[%emt 0:00:11]} Nb2 {[%emt 0:04:34]} 20. Qh5 {[%emt 0:00:35]} Nd3 {[%emt 0:01:03]} 21. Rd1 {[%emt 0:08:42]} Nxc1 {[%emt 0:00:54]} 22. Rdxc1 {[%emt 0:00:11]} Bd3 {[%emt 0:00:59]} 23. Nf4 {[%emt 0:01:06]} Bh7 {[%emt 0:01:20]} 24. Bh3 {[%emt 0:02:10]} Qb6 {[%emt 0:09:46]} 25. Rd1 {[%emt 0:04:43]} Qb3 {[%emt 0:04:56]} 26. Bf1 {[%emt 0:07:07]} Qb2 {[%emt 0:07:22]} 27. Nf3 {[%emt 0:04:51]} Qc2 {[%emt 0:03:34]} 28. Bd3 {[%emt 0:01:40]} Bxd3 {[%emt 0:00:06]} 29. Rxd3 {[%emt 0:01:04]} Rb3 {[%emt 0:01:26]} 30. Rxb3 {[%emt 0:01:04]} Qxb3 {[%emt 0:00:08]} 31. Kg2 {[%emt 0:01:31]} Nc7 {[%emt 0:01:05]} 32. g4 {[%emt 0:00:30]} Qc2 {[%emt 0:00:18]} 33. Kg3 {[%emt 0:02:47]} Rb8 {[%emt 0:00:40]} 34. g5 {[%emt 0:00:47]} Qf5 {[%emt 0:00:33]} 35. Rc1 {[%emt 0:00:46]} Ne8 {[%emt 0:00:31]} 36. gxh6 {[%emt 0:03:52]} Qxh5 {[%emt 0:00:19]} 37. Nxh5 {[%emt 0:00:02]} gxh6 {[%emt 0:00:04]} 38. a4 {[%emt 0:00:23]} f5 {[%emt 0:01:06]} 39. exf6 {[%emt 0:05:35]} Nxf6 {[%emt 0:00:20]} 40. Nxf6+ {[%emt 0:00:00]} Bxf6 {[%emt 0:00:00]} 41. Rc6 {[%emt 0:04:36]} Kf7 {[%emt 0:02:41]} 42. Ne5+ {[%emt 0:06:57]} Bxe5+ {[%emt 0:07:01]} 43. dxe5 {[%emt 0:00:09]} Rb4 {[%emt 0:02:04]} 44. h5 {[%emt 0:02:48]} Rxa4 {[%emt 0:04:37]} 45. Rc7+ {[%emt 0:00:50]} Ke8 {[%emt 0:00:01]} 46. Rh7 {[%emt 0:00:36]} Re4 {[%emt 0:02:23]} 47. f4 {[%emt 0:01:07]} d4 {[%emt 0:12:28]} 48. Rxh6 {[%emt 0:00:09]} Kd7 {[%emt 0:02:23]} 49. Rh7+ {[%emt 0:01:29]} Kc6 {[%emt 0:00:02]} 50. Ra7 {[%emt 0:03:01]} d3 {[%emt 0:01:32]} 51. Kf3 {[%emt 0:07:25]} d2 {[%emt 0:00:51]} 52. Ra6+ {[%emt 0:03:32]} Kc5 {[%emt 0:00:16]} 53. Rd6 {[%emt 0:00:50]} Rd4 {[%emt 0:00:07]} 54. Rxd4 {[%emt 0:00:24]} Kxd4 {[%emt 0:00:04]} 55. Ke2 {[%emt 0:00:04]} Kc3 {[%emt 0:00:05]} 56. Kd1 {[%emt 0:00:08]} a4 57. Ke2 0-1

[Event "IIFL Wealth 4th Mumbai Open"]
[Site "Mumbai"]
[Date "2019.01.02"]
[Round "4"]
[White "Apoorv, Kamble"]
[Black "Arhan, Chethan Anand"]
[Result "1/2-1/2"]
[ECO "C24"]
[WhiteElo "1458"]
[BlackElo "1710"]
[Annotator "NA"]
[PlyCount "41"]
[EventDate "2018.12.30"]
[EventType "swiss"]
[EventCountry "IND"]
[SourceTitle "playchess.com"]
[Source "ChessBase"]
[SourceQuality "1"]
[TimeControl "40/5400+30:1800+30"]

1. e4 e5 2. Bc4 Nf6 3. d4 exd4 4. e5 d5 5. Bb5+ Bd7 6. Bxd7+ Nfxd7 7. Nf3 Nc6 8. Bf4 Be7 9. Nbd2 Nc5 10. O-O Kf8 11. Nb3 Kg8 12. Bg3 Ne6 13. Nfxd4 Qd7 14. c3 Ncxd4 15. Nxd4 Nxd4 16. Qxd4 c5 17. Qd2 Qe6 18. f4 f5 19. Rad1 a6 20. Qe2 Rd8 21. a4 1/2-1/2

[Event "IIFL Wealth 4th Mumbai Open"]
[Site "Mumbai"]
[Date "2019.01.02"]
[Round "4"]
[White "Golvankar, Dilip K"]
[Black "Boramanikar, Tanisha S"]
[Result "0-1"]
[ECO "A04"]
[WhiteElo "1456"]
[BlackElo "1782"]
[Annotator "NA"]
[PlyCount "90"]
[EventDate "2018.12.30"]
[EventType "swiss"]
[EventCountry "IND"]
[SourceTitle "playchess.com"]
[Source "ChessBase"]
[SourceQuality "1"]
[TimeControl "40/5400+30:1800+30"]

1. Nf3 {[%emt 0:00:00]} c5 {[%emt 0:00:00]} 2. b3 {[%emt 0:00:05]} Nf6 {[%emt 0:00:43]} 3. Bb2 {[%emt 0:00:09]} g6 {[%emt 0:02:24]} 4. e4 {[%emt 0:01:43]} Bg7 {[%emt 0:02:08]} 5. d3 {[%emt 0:00:27]} O-O {[%emt 0:01:12]} 6. g3 {[%emt 0:00:47]} d6 {[%emt 0:03:15]} 7. Bg2 {[%emt 0:00:27]} Nc6 {[%emt 0:01:31]} 8. Nbd2 {[%emt 0:03:18]} Qc7 {[%emt 0:03:59]} 9. O-O {[%emt 0:01:29]} Rd8 {[%emt 0:01:26]} 10. h3 {[%emt 0:02:31]} Nxe4 {[%emt 0:04:54]} 11. Bxg7 {[%emt 0:04:21]} Nxd2 {[%emt 0:00:10]} 12. Qxd2 {[%emt 0:00:41]} Kxg7 {[%emt 0:00:22]} 13. Qc3+ {[%emt 0:01:21]} e5 {[%emt 0:05:05]} 14. Qd2 {[%emt 0:03:43]} Nd4 {[%emt 0:04:21]} 15. Ng5 {[%emt 0:01:33]} h6 {[%emt 0:03:30]} 16. c3 {[%emt 0:03:25]} Nc6 {[%emt 0:06:18]} 17. Nf3 {[%emt 0:00:13]} Be6 {[%emt 0:01:40]} 18. g4 {[%emt 0:01:37]} d5 {[%emt 0:06:38]} 19. g5 {[%emt 0:04:24]} h5 {[%emt 0:00:21]} 20. Qc2 {[%emt 0:02:47]} Qd7 {[%emt 0:05:28]} 21. Kh2 {[%emt 0:03:38]} Qd6 {[%emt 0:00:58]} 22. Kg1 {[%emt 0:00:06]} d4 {[%emt 0:01:58]} 23. c4 {[%emt 0:04:19]} Re8 {[%emt 0:05:53]} 24. Qe2 {[%emt 0:02:07]} Qe7 {[%emt 0:09:39]} 25. Rae1 {[%emt 0:06:35]} Bf5 {[%emt 0:01:24]} 26. Qd2 {[%emt 0:02:07]} Qd7 {[%emt 0:01:15]} 27. Kh2 {[%emt 0:02:36]} e4 {[%emt 0:03:58]} 28. dxe4 {[%emt 0:05:07]} Rxe4 {[%emt 0:00:55]} 29. Rxe4 {[%emt 0:00:38]} Bxe4 {[%emt 0:00:05]} 30. Qf4 {[%emt 0:01:07]} Qf5 {[%emt 0:01:00]} 31. Qxf5 {[%emt 0:00:55]} Bxf5 {[%emt 0:00:18]} 32. Re1 {[%emt 0:01:24]} Rd8 {[%emt 0:01:42]} 33. Nd2 {[%emt 0:00:40]} Rd6 {[%emt 0:01:54]} 34. Re8 {[%emt 0:05:05]} Re6 {[%emt 0:01:36]} 35. Bxc6 {[%emt 0:03:15]} bxc6 {[%emt 0:00:38]} 36. Rxe6 {[%emt 0:00:47]} fxe6 {[%emt 0:00:05]} 37. f4 {[%emt 0:00:21]} Kf7 {[%emt 0:00:16]} 38. Kg3 {[%emt 0:00:25]} Ke7 {[%emt 0:00:31]} 39. h4 {[%emt 0:00:05]} Kd6 {[%emt 0:00:06]} 40. Kf3 {[%emt 0:00:00]} e5 {[%emt 0:00:00]} 41. a3 {[%emt 0:06:05]} a5 {[%emt 0:00:39]} 42. a4 {[%emt 0:21:11]} Bc2 {[%emt 0:00:18]} 43. Ne4+ {[%emt 0:04:34]} Bxe4+ {[%emt 0:00:22]} 44. Kxe4 {[%emt 0:00:04]} exf4 {[%emt 0:00:09]} 45. Kxf4 {[%emt 0:00:18]} d3 {[%emt 0:01:21]} 0-1

[Event "IIFL Wealth 4th Mumbai Open"]
[Site "Mumbai"]
[Date "2019.01.02"]
[Round "4"]
[White "Sairaj, Dilip Vernekar"]
[Black "Devesh, Anand Naik"]
[Result "0-1"]
[ECO "C00"]
[WhiteElo "1445"]
[BlackElo "1763"]
[Annotator "NA"]
[PlyCount "120"]
[EventDate "2018.12.30"]
[EventType "swiss"]
[EventCountry "IND"]
[SourceTitle "playchess.com"]
[Source "ChessBase"]
[SourceQuality "1"]
[TimeControl "40/5400+30:1800+30"]

1. e4 e6 2. d4 d5 3. Bd3 Nf6 4. e5 Nfd7 5. Nf3 c5 6. c3 Nc6 7. O-O Be7 8. Bb5 a6 9. Bxc6 bxc6 10. Be3 O-O 11. Nbd2 a5 12. Nb3 c4 13. Nc1 Qc7 14. Ne2 c5 15. Qc2 Ba6 16. Rfe1 Rab8 17. Rab1 Rb6 18. Ng3 Rfb8 19. Ng5 Nf8 20. dxc5 Bxc5 21. Bxc5 Qxc5 22. Nf3 Qc7 23. Qd2 Qe7 24. Ne2 Qb7 25. Ned4 Rxb2 26. Rxb2 Qxb2 27. Nc6 Qxd2 28. Nxd2 Rb2 29. Nf3 Rxa2 30. Ne7+ Kh8 31. Ng5 g6 32. Nxf7+ Kg7 33. Ng5 Bb5 34. Rc1 Bd7 35. Re1 h6 36. Nf3 Kf7 37. Nxd5 exd5 38. Nd4 Ne6 39. Nxe6 Kxe6 40. f4 Rb2 41. Ra1 a4 42. Ra3 Rb3 43. Ra1 Rxc3 44. Kf2 a3 45. g3 Rb3 46. Kg2 Rb2+ 47. Kf3 a2 48. g4 c3 49. Kg3 c2 50. Kh4 g5+ 51. fxg5 hxg5+ 52. Kh5 Be8+ 53. Kxg5 Rb1 54. Rxa2 c1=Q+ 55. Kh4 Qe1+ 56. Kh3 Rb3+ 57. Kg2 Qe4+ 58. Kf2 Qe3+ 59. Kg2 Qf3+ 60. Kg1 Rb1# 0-1

[Event "IIFL Wealth 4th Mumbai Open"]
[Site "Mumbai"]
[Date "2019.01.02"]
[Round "4"]
[White "Mishra, Rahul"]
[Black "Shetye, Shyam"]
[Result "1/2-1/2"]
[ECO "B20"]
[WhiteElo "1433"]
[BlackElo "1685"]
[Annotator "NA"]
[PlyCount "93"]
[EventDate "2018.12.30"]
[EventType "swiss"]
[EventCountry "IND"]
[SourceTitle "playchess.com"]
[Source "ChessBase"]
[SourceQuality "1"]
[TimeControl "40/5400+30:1800+30"]

1. e4 c5 2. b4 e6 3. Bb2 Nf6 4. bxc5 Bxc5 5. d4 Bb4+ 6. c3 Be7 7. Bd3 O-O 8. Nf3 d6 9. Qc2 h6 10. O-O Nc6 11. Nbd2 e5 12. d5 Nb8 13. h3 Nbd7 14. Nb3 Re8 15. c4 b6 16. a4 a5 17. Bc3 Ba6 18. Qe2 Rc8 19. Rfc1 Nc5 20. Nxc5 Rxc5 21. Rab1 Nd7 22. Bd2 Rc8 23. Be3 Nc5 24. Qc2 Rb8 25. Nd2 Qd7 26. Bxc5 bxc5 27. Rxb8 Rxb8 28. Rb1 Rb4 29. Rxb4 axb4 30. Qa2 Qa7 31. Nb3 Bc8 32. a5 Bd8 33. Kf1 Bd7 34. Ke2 Kf8 35. Kd2 Bc7 36. Be2 g6 37. g4 Bd8 38. Bd3 Bc8 39. Ke2 Qe7 40. Kf1 Qd7 41. Kg2 Kg7 42. Bc2 f5 43. gxf5 gxf5 44. exf5 Qe7 45. Qa4 Bd7 46. Qa2 e4 47. a6 1/2-1/2

[Event "IIFL Wealth 4th Mumbai Open"]
[Site "Mumbai"]
[Date "2019.01.02"]
[Round "4"]
[White "Adarsh, Sanklecha"]
[Black "Tamhankar, Siddhant"]
[Result "0-1"]
[ECO "B56"]
[WhiteElo "1414"]
[BlackElo "1704"]
[Annotator "NA"]
[PlyCount "114"]
[EventDate "2018.12.30"]
[EventType "swiss"]
[EventCountry "IND"]
[SourceTitle "playchess.com"]
[Source "ChessBase"]
[SourceQuality "1"]
[TimeControl "40/5400+30:1800+30"]

1. e4 c5 2. Nf3 d6 3. d4 cxd4 4. Nxd4 Nf6 5. Nc3 Nc6 6. Be3 e5 7. Nb3 Be7 8. f3 O-O 9. Qd2 a6 10. O-O-O b5 11. g4 Na5 12. Nxa5 Qxa5 13. Kb1 b4 14. Nd5 Nxd5 15. exd5 Bd7 16. h4 Rfb8 17. h5 Qd8 18. g5 Bf5 19. Bh3 Qd7 20. Bxf5 Qxf5 21. f4 b3 22. Qd3 bxc2+ 23. Kxc2 Rc8+ 24. Kb1 Qxd3+ 25. Rxd3 exf4 26. Bxf4 Rc4 27. Rf1 a5 28. h6 Rxf4 29. Rxf4 Bxg5 30. Rc4 Bxh6 31. Kc2 f5 32. Rf3 f4 33. Rc6 Rd8 34. Kd3 Kf7 35. Ra6 g5 36. Rh3 Kg6 37. Ke4 Bg7 38. Rxa5 Re8+ 39. Kf3 Re3+ 40. Kg2 Re2+ 41. Kf3 Rxb2 42. Rh1 Kf5 43. Rh5 Bd4 44. Rxg5+ Kxg5 45. Ke4 Bc5 46. Ra8 Re2+ 47. Kf3 Re3+ 48. Kg2 f3+ 49. Kh2 f2 50. Kg2 Re1 51. Rg8+ Kh4 52. Rf8 Rg1+ 53. Kh2 f1=N+ 54. Rxf1 Rxf1 55. a4 Rf2+ 56. Kg1 Kg3 57. a5 Rf3+ 0-1